[Event "*** Titled Tuesday Blitz"]
[Site "Chess.com"]
[Date "2019.06.04"]
[Round "4"]
[White "spicycaterpillar"]
[Black "Cryptochess"]
[Result "1-0"]
[WhiteElo "2834"]
[BlackElo "2652"]
[TimeControl "180+2"]
[EndTime "13:53:55 PDT"]
[Termination "spicycaterpillar won by resignation"]

1. c4 {[%clk 0:03:01.9]} 1... e6 {[%clk 0:03:00.6]} 2. Nc3 {[%clk 0:03:02.5]}
2... d5 {[%clk 0:03:02]} 3. d4 {[%clk 0:03:01.7]} 3... Nf6 {[%clk 0:03:02.8]} 4.
cxd5 {[%clk 0:03:02.8]} 4... exd5 {[%clk 0:03:03.5]} 5. Bg5 {[%clk 0:03:03.6]}
5... Be7 {[%clk 0:03:04.7]} 6. e3 {[%clk 0:02:59.9]} 6... O-O {[%clk 0:03:06]}
7. Bd3 {[%clk 0:03:01.1]} 7... Nbd7 {[%clk 0:03:06]} 8. Nge2 {[%clk 0:02:55.2]}
8... Re8 {[%clk 0:03:00.6]} 9. O-O {[%clk 0:02:55.8]} 9... Nf8 {[%clk
0:02:53.5]} 10. Qc2 {[%clk 0:02:49.9]} 10... Be6 {[%clk 0:02:48.6]} 11. Nf4
{[%clk 0:02:42.5]} 11... h6 {[%clk 0:02:44.6]} 12. Bh4 {[%clk 0:02:37]} 12... c6
{[%clk 0:02:14.6]} 13. Rab1 {[%clk 0:02:37.3]} 13... a5 {[%clk 0:02:14.2]} 14.
a3 {[%clk 0:02:38.3]} 14... Qd7 {[%clk 0:02:00]} 15. Na4 {[%clk 0:02:33.4]}
15... Qc7 {[%clk 0:01:53.3]} 16. Nc5 {[%clk 0:02:15.4]} 16... Bxc5 {[%clk
0:01:51]} 17. dxc5 {[%clk 0:02:07.8]} 17... Ne4 {[%clk 0:01:46]} 18. f3 {[%clk
0:01:59.6]} 18... g5 {[%clk 0:00:59.5]} 19. fxe4 {[%clk 0:01:55]} 19... gxh4
{[%clk 0:00:49.4]} 20. Nh5 {[%clk 0:01:39.3]} 20... Nd7 {[%clk 0:00:45.3]} 21.
Qc3 {[%clk 0:01:26.2]} 21... Qe5 {[%clk 0:00:39.9]} 22. Nf6+ {[%clk 0:01:27.2]}
22... Kg7 {[%clk 0:00:32.2]} 23. Nxe8+ {[%clk 0:01:26.7]} 23... Rxe8 {[%clk
0:00:34.1]} 24. Rbc1 {[%clk 0:01:05]} 24... dxe4 {[%clk 0:00:26.6]} 25. Bxe4
{[%clk 0:00:59.7]} 25... h3 {[%clk 0:00:21.8]} 26. g3 {[%clk 0:00:38.7]} 26...
Bg4 {[%clk 0:00:14.2]} 27. Bf3 {[%clk 0:00:33.9]} 27... Bxf3 {[%clk 0:00:10.3]}
28. Rxf3 {[%clk 0:00:35.8]} 28... Qxc3 {[%clk 0:00:11.2]} 29. Rxc3 {[%clk
0:00:37]} 29... Re5 {[%clk 0:00:13]} 30. b4 {[%clk 0:00:28.3]} 30... axb4 {[%clk
0:00:14.9]} 31. axb4 {[%clk 0:00:29.8]} 31... Nf6 {[%clk 0:00:16.5]} 32. Rd3
{[%clk 0:00:24.4]} 32... Nd5 {[%clk 0:00:15.7]} 33. g4 {[%clk 0:00:24.6]} 33...
Nxb4 {[%clk 0:00:14.5]} 34. Rd7 {[%clk 0:00:25.5]} 34... Rxc5 {[%clk 0:00:09.7]}
35. Rdxf7+ {[%clk 0:00:20.9]} 35... Kg6 {[%clk 0:00:11.1]} 36. Rxb7 {[%clk
0:00:14.5]} 36... Nd5 {[%clk 0:00:09]} 37. Rxh3 {[%clk 0:00:14.4]} 37... Rc1+
{[%clk 0:00:09.7]} 38. Kg2 {[%clk 0:00:14.5]} 38... Rc2+ {[%clk 0:00:10.6]} 39.
Kf3 {[%clk 0:00:15.3]} 39... Rc3 {[%clk 0:00:12.1]} 40. Ke4 {[%clk 0:00:12.6]}
40... Nf6+ {[%clk 0:00:10.8]} 41. Kd4 {[%clk 0:00:11.1]} 41... Rc1 {[%clk
0:00:09.9]} 42. e4 {[%clk 0:00:06.6]} 42... Rd1+ {[%clk 0:00:08.5]} 43. Rd3
{[%clk 0:00:06.9]} 43... Re1 {[%clk 0:00:10]} 44. Re3 {[%clk 0:00:05.3]} 44...
Rd1+ {[%clk 0:00:09.5]} 45. Kc3 {[%clk 0:00:05.6]} 45... Nxg4 {[%clk 0:00:07.3]}
46. Rg3 {[%clk 0:00:06.3]} 46... Kh5 {[%clk 0:00:09]} 47. Rg7 {[%clk 0:00:05.4]}
47... Nf2 {[%clk 0:00:08.9]} 48. Kc2 {[%clk 0:00:04.6]} 48... Rd4 {[%clk
0:00:09.5]} 49. Rf3 {[%clk 0:00:05.5]} 49... Rc4+ {[%clk 0:00:07.7]} 50. Kb3
{[%clk 0:00:06.4]} 50... Rxe4 {[%clk 0:00:06.6]} 51. Rxf2 {[%clk 0:00:07.6]}
51... Re3+ {[%clk 0:00:07.3]} 52. Kc4 {[%clk 0:00:08.5]} 52... Re4+ {[%clk
0:00:08.8]} 53. Kd3 {[%clk 0:00:09.9]} 53... Re5 {[%clk 0:00:08.2]} 54. Rg3
{[%clk 0:00:09.9]} 54... Kh4 {[%clk 0:00:08.6]} 55. Rf4+ {[%clk 0:00:10.4]}
55... Kh5 {[%clk 0:00:10.1]} 56. Re4 {[%clk 0:00:11.5]} 56... Rc5 {[%clk
0:00:11.2]} 57. Rc4 {[%clk 0:00:12.5]} 57... Rd5+ {[%clk 0:00:12.8]} 58. Kc3
{[%clk 0:00:14.1]} 58... c5 {[%clk 0:00:13.9]} 59. Rd3 {[%clk 0:00:15]} 59...
Rg5 {[%clk 0:00:14.8]} 60. Kb3 {[%clk 0:00:15.5]} 60... Rg2 {[%clk 0:00:15.6]}
61. h3 {[%clk 0:00:16.5]} 61... Rg5 {[%clk 0:00:16.1]} 62. Ka4 {[%clk
0:00:17.6]} 62... Rf5 {[%clk 0:00:16.6]} 63. Kb5 {[%clk 0:00:18.7]} 63... Kg6
{[%clk 0:00:17.8]} 64. Rxc5 {[%clk 0:00:18.4]} 64... Rf1 {[%clk 0:00:19.4]} 65.
Rd6+ {[%clk 0:00:18.5]} 65... Kf7 {[%clk 0:00:20.9]} 66. Rc7+ {[%clk 0:00:19.3]}
66... Ke8 {[%clk 0:00:22.5]} 67. Rh7 {[%clk 0:00:19.1]} 67... Rb1+ {[%clk
0:00:23.8]} 68. Kc4 {[%clk 0:00:20.1]} 68... Rc1+ {[%clk 0:00:25.4]} 69. Kb3
{[%clk 0:00:21.4]} 69... Rh1 {[%clk 0:00:22.1]} 70. Rd3 {[%clk 0:00:21]} 70...
Rb1+ {[%clk 0:00:21.3]} 71. Kc2 {[%clk 0:00:21.7]} 71... Rb6 {[%clk 0:00:23]}
72. Rc3 {[%clk 0:00:22]} 72... Kd8 {[%clk 0:00:21.7]} 73. Rb3 {[%clk 0:00:21.5]}
73... Rc6+ {[%clk 0:00:22.6]} 74. Kd2 {[%clk 0:00:22.4]} 74... Kc8 {[%clk
0:00:24.2]} 75. Rc3 {[%clk 0:00:22.8]} 1-0

[Event "*** Titled Tuesday Blitz"]
[Site "Chess.com"]
[Date "2019.06.04"]
[Round "4"]
[White "Pechen_Yeltsina"]
[Black "pedromartinez91"]
[Result "1-0"]
[WhiteElo "2685"]
[BlackElo "2417"]
[TimeControl "180+2"]
[EndTime "13:53:59 PDT"]
[Termination "Pechen_Yeltsina won by resignation"]

1. Nf3 {[%clk 0:03:01.9]} 1... d5 {[%clk 0:02:56.9]} 2. g3 {[%clk 0:03:03.1]}
2... Nf6 {[%clk 0:02:55.9]} 3. Bg2 {[%clk 0:03:02.9]} 3... g6 {[%clk 0:02:56.5]}
4. O-O {[%clk 0:03:04.4]} 4... Bg7 {[%clk 0:02:57.8]} 5. d3 {[%clk 0:03:06]}
5... O-O {[%clk 0:02:59.1]} 6. Nbd2 {[%clk 0:03:07.6]} 6... c5 {[%clk
0:02:59.4]} 7. e4 {[%clk 0:03:09]} 7... Nc6 {[%clk 0:03:00.9]} 8. Re1 {[%clk
0:03:10]} 8... dxe4 {[%clk 0:02:58.3]} 9. dxe4 {[%clk 0:03:10.3]} 9... e5 {[%clk
0:02:59.1]} 10. c3 {[%clk 0:03:10.1]} 10... Qc7 {[%clk 0:02:59]} 11. Qc2 {[%clk
0:03:06.8]} 11... b6 {[%clk 0:02:55.7]} 12. Nc4 {[%clk 0:03:06.8]} 12... Ba6
{[%clk 0:02:53.8]} 13. Ne3 {[%clk 0:03:04.2]} 13... Rad8 {[%clk 0:02:53.8]} 14.
Nd2 {[%clk 0:02:59.9]} 14... Bd3 {[%clk 0:02:51.7]} 15. Qa4 {[%clk 0:03:00.3]}
15... b5 {[%clk 0:02:52.1]} 16. Qa3 {[%clk 0:02:52.6]} 16... c4 {[%clk
0:02:31.6]} 17. b3 {[%clk 0:02:37.4]} 17... Na5 {[%clk 0:02:10.3]} 18. bxc4
{[%clk 0:02:33.6]} 18... Nxc4 {[%clk 0:02:11.3]} 19. Ndxc4 {[%clk 0:02:33.2]}
19... bxc4 {[%clk 0:02:01.3]} 20. Nd5 {[%clk 0:02:32.3]} 20... Nxd5 {[%clk
0:02:01.2]} 21. exd5 {[%clk 0:02:34.2]} 21... Rfe8 {[%clk 0:02:00.8]} 22. Be3
{[%clk 0:02:29.9]} 22... e4 {[%clk 0:02:02.1]} 23. Bf4 {[%clk 0:02:20.7]} 23...
Qb7 {[%clk 0:01:41.9]} 24. d6 {[%clk 0:02:14.6]} 24... h6 {[%clk 0:01:42]} 25.
h4 {[%clk 0:02:12.9]} 25... Kh7 {[%clk 0:01:21.1]} 26. Rad1 {[%clk 0:02:04.8]}
26... f5 {[%clk 0:01:19.7]} 27. Rd2 {[%clk 0:02:05.1]} 27... Bf6 {[%clk
0:01:17.2]} 28. Rb2 {[%clk 0:02:04.1]} 28... Qd7 {[%clk 0:01:11.4]} 29. Bh3
{[%clk 0:01:39.1]} 29... Rb8 {[%clk 0:01:10]} 30. Rd1 {[%clk 0:01:32.4]} 30...
g5 {[%clk 0:01:10.2]} 31. hxg5 {[%clk 0:01:29.5]} 31... hxg5 {[%clk 0:01:12.1]}
32. Rxb8 {[%clk 0:01:30.1]} 32... Rxb8 {[%clk 0:01:12.6]} 33. Qa5 {[%clk
0:01:26.5]} 33... Kg6 {[%clk 0:01:13.2]} 34. Be3 {[%clk 0:01:24.8]} 34... Rb5
{[%clk 0:01:05.6]} 35. Qc7 {[%clk 0:01:03]} 35... Rb7 {[%clk 0:01:06.6]} 36. Qc5
{[%clk 0:01:00.2]} 36... g4 {[%clk 0:00:59]} 37. Bf1 {[%clk 0:00:53.4]} 37...
Rb6 {[%clk 0:01:00.2]} 38. Bf4 {[%clk 0:00:48.5]} 38... Bg5 {[%clk 0:00:49.5]}
39. Be5 {[%clk 0:00:42.9]} 39... Bf6 {[%clk 0:00:46.6]} 40. Bf4 {[%clk
0:00:29.1]} 40... Rb5 {[%clk 0:00:47.5]} 41. Qc7 {[%clk 0:00:28.1]} 41... Qxc7
{[%clk 0:00:48.7]} 42. dxc7 {[%clk 0:00:28.7]} 42... Rc5 {[%clk 0:00:49.6]} 43.
Rc1 {[%clk 0:00:27]} 43... Kf7 {[%clk 0:00:45.1]} 44. Bxd3 {[%clk 0:00:24.1]}
44... cxd3 {[%clk 0:00:47]} 45. c4 {[%clk 0:00:25.1]} 45... Ke6 {[%clk
0:00:47.9]} 46. Kf1 {[%clk 0:00:25.5]} 46... Kd7 {[%clk 0:00:49.2]} 47. Ke1
{[%clk 0:00:25.7]} 47... Be5 {[%clk 0:00:50.4]} 48. Bxe5 {[%clk 0:00:22.7]}
48... Rxe5 {[%clk 0:00:52.3]} 49. Kd2 {[%clk 0:00:24.3]} 49... Ra5 {[%clk
0:00:50.1]} 50. Ra1 {[%clk 0:00:21.5]} 50... Kxc7 {[%clk 0:00:48.5]} 51. Kc3
{[%clk 0:00:22.8]} 51... Ra3+ {[%clk 0:00:42.8]} 52. Kb2 {[%clk 0:00:23.1]}
52... Ra6 {[%clk 0:00:42]} 53. Rh1 {[%clk 0:00:24.3]} 53... Rd6 {[%clk
0:00:42.2]} 54. Kc3 {[%clk 0:00:22.6]} 54... d2 {[%clk 0:00:32.9]} 55. Rd1
{[%clk 0:00:23]} 55... Kc6 {[%clk 0:00:30.9]} 56. Rxd2 {[%clk 0:00:23.9]} 56...
Rxd2 {[%clk 0:00:28.4]} 57. Kxd2 {[%clk 0:00:25.8]} 57... Kc5 {[%clk 0:00:29.9]}
58. Kc3 {[%clk 0:00:27]} 58... a5 {[%clk 0:00:29.2]} 59. a4 {[%clk 0:00:25.7]}
59... f4 {[%clk 0:00:29.5]} 60. gxf4 {[%clk 0:00:20.7]} 60... e3 {[%clk
0:00:30.8]} 61. Kd3 {[%clk 0:00:21.6]} 61... e2 {[%clk 0:00:30.1]} 62. Kxe2
{[%clk 0:00:21.3]} 62... Kxc4 {[%clk 0:00:31.6]} 63. Kf1 {[%clk 0:00:22.3]}
63... Kd4 {[%clk 0:00:31]} 64. Kg2 {[%clk 0:00:23]} 64... Ke4 {[%clk 0:00:32.4]}
65. Kg3 {[%clk 0:00:23.8]} 65... Kf5 {[%clk 0:00:33.5]} 66. f3 {[%clk
0:00:25.2]} 66... gxf3 {[%clk 0:00:28.4]} 67. Kxf3 {[%clk 0:00:26.9]} 67... Kf6
{[%clk 0:00:29.6]} 68. Ke4 {[%clk 0:00:28]} 68... Ke6 {[%clk 0:00:31.1]} 69. Ke3
{[%clk 0:00:28.5]} 69... Kf5 {[%clk 0:00:32.5]} 70. Kf3 {[%clk 0:00:29.9]} 70...
Ke6 {[%clk 0:00:33.9]} 71. Ke4 {[%clk 0:00:31]} 71... Kf6 {[%clk 0:00:35.2]} 72.
Kd5 {[%clk 0:00:32.4]} 72... Kf5 {[%clk 0:00:36.8]} 73. Kc6 {[%clk 0:00:34.3]}
73... Kxf4 {[%clk 0:00:38.6]} 74. Kb5 {[%clk 0:00:36.2]} 74... Ke5 {[%clk
0:00:40.5]} 75. Kxa5 {[%clk 0:00:38.1]} 75... Kd6 {[%clk 0:00:41.2]} 76. Kb6
{[%clk 0:00:39.5]} 76... Kd7 {[%clk 0:00:42.3]} 77. Kb7 {[%clk 0:00:40.9]} 77...
Kd6 {[%clk 0:00:43.5]} 78. a5 {[%clk 0:00:42.8]} 78... Kc5 {[%clk 0:00:45.4]}
79. a6 {[%clk 0:00:44.7]} 1-0

[Event "*** Titled Tuesday Blitz"]
[Site "Chess.com"]
[Date "2019.06.04"]
[Round "4"]
[White "Saitama_Hero"]
[Black "Chebure"]
[Result "0-1"]
[WhiteElo "2427"]
[BlackElo "2798"]
[TimeControl "180+2"]
[EndTime "13:54:01 PDT"]
[Termination "Chebure won by resignation"]

1. d4 {[%clk 0:03:01.9]} 1... Nf6 {[%clk 0:03:00.8]} 2. c4 {[%clk 0:03:03.5]}
2... d6 {[%clk 0:03:01.4]} 3. Nc3 {[%clk 0:03:04.9]} 3... Bf5 {[%clk 0:03:01.8]}
4. f3 {[%clk 0:03:04.3]} 4... e5 {[%clk 0:03:01.2]} 5. d5 {[%clk 0:03:04.9]}
5... a5 {[%clk 0:03:01.1]} 6. e4 {[%clk 0:03:06.4]} 6... Bd7 {[%clk 0:03:01.5]}
7. Be3 {[%clk 0:03:07.7]} 7... g6 {[%clk 0:03:01.5]} 8. Qd2 {[%clk 0:03:05.8]}
8... Na6 {[%clk 0:03:00.3]} 9. b3 {[%clk 0:03:04.8]} 9... Bg7 {[%clk 0:02:59.8]}
10. Nge2 {[%clk 0:03:05.1]} 10... O-O {[%clk 0:03:00.2]} 11. g4 {[%clk
0:03:06.7]} 11... a4 {[%clk 0:03:00.1]} 12. Rb1 {[%clk 0:03:03]} 12... axb3
{[%clk 0:02:59.9]} 13. axb3 {[%clk 0:03:04.9]} 13... Nb4 {[%clk 0:02:57.2]} 14.
Ng3 {[%clk 0:03:00.3]} 14... c5 {[%clk 0:02:34.3]} 15. dxc6 {[%clk 0:02:49.7]}
15... Nxc6 {[%clk 0:02:33.6]} 16. Be2 {[%clk 0:02:47.9]} 16... Nd4 {[%clk
0:02:33.5]} 17. Bd1 {[%clk 0:02:42.3]} 17... Be6 {[%clk 0:02:25.8]} 18. O-O
{[%clk 0:02:42.9]} 18... Nd7 {[%clk 0:02:22.4]} 19. Kh1 {[%clk 0:02:37.2]} 19...
Nc5 {[%clk 0:02:18.8]} 20. Rg1 {[%clk 0:02:19.3]} 20... b5 {[%clk 0:02:13.5]}
21. b4 {[%clk 0:02:03.5]} 21... Na4 {[%clk 0:02:07.2]} 22. Nxa4 {[%clk
0:01:48.2]} 22... bxa4 {[%clk 0:02:09.1]} 23. Rc1 {[%clk 0:01:30.8]} 23... a3
{[%clk 0:02:03.8]} 24. Nf5 {[%clk 0:01:30.7]} 24... Bxf5 {[%clk 0:01:47.8]} 25.
gxf5 {[%clk 0:01:29.9]} 25... a2 {[%clk 0:01:48.4]} 26. Ra1 {[%clk 0:01:29.6]}
26... Qc8 {[%clk 0:01:31.8]} 27. Bxd4 {[%clk 0:01:04.4]} 27... exd4 {[%clk
0:01:31.7]} 28. Qd3 {[%clk 0:01:05.7]} 28... Qb7 {[%clk 0:01:26]} 29. b5 {[%clk
0:01:03]} 29... Ra7 {[%clk 0:01:17]} 30. Bb3 {[%clk 0:01:02.9]} 30... Rfa8
{[%clk 0:01:16.9]} 31. fxg6 {[%clk 0:01:02.3]} 31... hxg6 {[%clk 0:01:17.2]} 32.
Rg2 {[%clk 0:00:43.7]} 32... Ra3 {[%clk 0:01:16.5]} 33. Rgxa2 {[%clk 0:00:43.3]}
33... Rxa2 {[%clk 0:01:15.5]} 34. Rxa2 {[%clk 0:00:45.2]} 34... Rxa2 {[%clk
0:01:15.6]} 35. Bxa2 {[%clk 0:00:46.6]} 35... Qa7 {[%clk 0:01:16.1]} 36. Qb3
{[%clk 0:00:43]} 36... d3 {[%clk 0:01:05.2]} 37. b6 {[%clk 0:00:27.1]} 37... Qb7
{[%clk 0:01:04.4]} 38. Qb5 {[%clk 0:00:14.6]} 38... d2 {[%clk 0:00:59.6]} 39.
Bb3 {[%clk 0:00:15.3]} 39... Bd4 {[%clk 0:00:59.7]} 40. Kg2 {[%clk 0:00:09.3]}
40... Bxb6 {[%clk 0:00:58.1]} 41. c5 {[%clk 0:00:07.6]} 41... dxc5 {[%clk
0:00:58.5]} 42. Qd3 {[%clk 0:00:06.2]} 42... Ba5 {[%clk 0:00:55.6]} 43. e5
{[%clk 0:00:04.5]} 43... Qe7 {[%clk 0:00:43.8]} 44. Qxg6+ {[%clk 0:00:04.2]}
44... Kf8 {[%clk 0:00:39]} 45. Qh6+ {[%clk 0:00:05.5]} 45... Ke8 {[%clk
0:00:39.7]} 46. Qc6+ {[%clk 0:00:05.8]} 46... Kf8 {[%clk 0:00:35.4]} 47. Qa8+
{[%clk 0:00:06.9]} 47... Bd8 {[%clk 0:00:30.3]} 48. Qd5 {[%clk 0:00:06.8]} 48...
Bc7 {[%clk 0:00:19.2]} 49. f4 {[%clk 0:00:07.8]} 49... Qe6 {[%clk 0:00:14.4]}
50. Qxc5+ {[%clk 0:00:07.4]} 50... Qe7 {[%clk 0:00:15]} 51. Qd5 {[%clk
0:00:08.1]} 51... Qe8 {[%clk 0:00:10.7]} 52. Qxd2 {[%clk 0:00:06.8]} 52... Qc6+
{[%clk 0:00:11.4]} 53. Bd5 {[%clk 0:00:06.2]} 53... Qa4 {[%clk 0:00:09.9]} 54.
Kf3 {[%clk 0:00:04.9]} 54... Ba5 {[%clk 0:00:10.8]} 55. Qd3 {[%clk 0:00:05.2]}
55... Qa1 {[%clk 0:00:11.6]} 56. Qe4 {[%clk 0:00:06.5]} 56... Bb6 {[%clk
0:00:11.7]} 57. Kg4 {[%clk 0:00:08.4]} 57... Qg1+ {[%clk 0:00:11.2]} 58. Kh3
{[%clk 0:00:08.7]} 58... Qf1+ {[%clk 0:00:12.3]} 59. Kg4 {[%clk 0:00:07]} 59...
Bd8 {[%clk 0:00:11.5]} 60. Qf5 {[%clk 0:00:07.1]} 60... Qg1+ {[%clk 0:00:12]}
61. Kf3 {[%clk 0:00:07.7]} 61... Qh1+ {[%clk 0:00:12.7]} 62. Kg4 {[%clk
0:00:06.6]} 62... Qxd5 {[%clk 0:00:13.7]} 63. Qh5 {[%clk 0:00:05.5]} 63... Qd1+
{[%clk 0:00:13.6]} 0-1

[Event "*** Titled Tuesday Blitz"]
[Site "Chess.com"]
[Date "2019.06.04"]
[Round "4"]
[White "Koksik_13"]
[Black "GHANDEEVAM2003"]
[Result "0-1"]
[WhiteElo "2637"]
[BlackElo "2933"]
[TimeControl "180+2"]
[EndTime "13:54:32 PDT"]
[Termination "GHANDEEVAM2003 won by resignation"]

1. e4 {[%clk 0:02:56.5]} 1... e6 {[%clk 0:02:58.2]} 2. d4 {[%clk 0:02:57.6]}
2... d5 {[%clk 0:02:59.6]} 3. Nc3 {[%clk 0:02:58.7]} 3... Nf6 {[%clk 0:02:59.3]}
4. e5 {[%clk 0:02:59.8]} 4... Ne4 {[%clk 0:02:59.9]} 5. Bd3 {[%clk 0:03:00.3]}
5... Nxc3 {[%clk 0:03:00.6]} 6. bxc3 {[%clk 0:03:01.6]} 6... c5 {[%clk
0:03:02.1]} 7. Nf3 {[%clk 0:02:59.2]} 7... Qa5 {[%clk 0:03:03]} 8. Bd2 {[%clk
0:02:59.5]} 8... c4 {[%clk 0:03:04]} 9. Bf1 {[%clk 0:03:00.3]} 9... Ba3 {[%clk
0:03:05]} 10. Rb1 {[%clk 0:03:00.1]} 10... Nc6 {[%clk 0:03:06]} 11. g3 {[%clk
0:03:00.8]} 11... b6 {[%clk 0:03:06.7]} 12. h4 {[%clk 0:03:01.4]} 12... Bd7
{[%clk 0:03:07.7]} 13. Bh3 {[%clk 0:03:02]} 13... h6 {[%clk 0:03:08.8]} 14. h5
{[%clk 0:03:01]} 14... O-O-O {[%clk 0:03:09.6]} 15. O-O {[%clk 0:03:01.8]} 15...
Ne7 {[%clk 0:03:09.9]} 16. Qe2 {[%clk 0:02:56.9]} 16... Ba4 {[%clk 0:03:07.4]}
17. Ne1 {[%clk 0:02:57.7]} 17... Rdf8 {[%clk 0:03:06.4]} 18. f4 {[%clk 0:02:55]}
18... Nf5 {[%clk 0:03:06.2]} 19. Bxf5 {[%clk 0:02:55.2]} 19... exf5 {[%clk
0:03:08.1]} 20. Qe3 {[%clk 0:02:52.8]} 20... Rhg8 {[%clk 0:03:05.3]} 21. Bc1
{[%clk 0:02:53]} 21... Bd7 {[%clk 0:02:57.3]} 22. Bxa3 {[%clk 0:02:52.5]} 22...
Qxa3 {[%clk 0:02:59.2]} 23. Nf3 {[%clk 0:02:49.1]} 23... g6 {[%clk 0:02:53.9]}
24. hxg6 {[%clk 0:02:48.1]} 24... Rxg6 {[%clk 0:02:55.8]} 25. Kf2 {[%clk
0:02:48.6]} 25... Rfg8 {[%clk 0:02:50.8]} 26. Rg1 {[%clk 0:02:49.6]} 26... Be6
{[%clk 0:02:47.6]} 27. Qc1 {[%clk 0:02:48.3]} 27... Qxc3 {[%clk 0:02:47.3]} 28.
Qd2 {[%clk 0:02:39.8]} 28... Qxd2+ {[%clk 0:02:40.6]} 29. Nxd2 {[%clk
0:02:40.6]} 29... Kc7 {[%clk 0:02:42.2]} 30. Nf1 {[%clk 0:02:40.5]} 30... h5
{[%clk 0:02:24.4]} 31. Rh1 {[%clk 0:02:37.5]} 31... Rh6 {[%clk 0:02:21.3]} 32.
Ne3 {[%clk 0:02:34.2]} 32... Kc6 {[%clk 0:02:22.7]} 33. Rh4 {[%clk 0:02:29.1]}
33... b5 {[%clk 0:02:22.5]} 34. c3 {[%clk 0:02:30]} 34... a5 {[%clk 0:02:17.5]}
35. a3 {[%clk 0:02:30.9]} 35... Rb8 {[%clk 0:02:14.1]} 36. g4 {[%clk 0:02:26.8]}
36... fxg4 {[%clk 0:02:09.5]} 37. f5 {[%clk 0:02:27.4]} 37... Rf8 {[%clk
0:01:55.7]} 38. fxe6 {[%clk 0:02:23.8]} 38... fxe6+ {[%clk 0:01:57.6]} 39. Ke2
{[%clk 0:02:18.9]} 39... g3 {[%clk 0:01:50.8]} 40. Ng4 {[%clk 0:01:52.8]} 40...
Rf4 {[%clk 0:01:32.3]} 41. Nxh6 {[%clk 0:01:40.5]} 41... Rxh4 {[%clk 0:01:34.2]}
42. Kf3 {[%clk 0:01:38]} 42... Rh2 {[%clk 0:01:34.6]} 43. Kxg3 {[%clk
0:01:18.4]} 43... Rc2 {[%clk 0:01:34.6]} 44. Nf7 {[%clk 0:01:17.9]} 44... Rxc3+
{[%clk 0:01:34.3]} 45. Kf4 {[%clk 0:01:15.5]} 45... Rxa3 {[%clk 0:01:32.9]} 46.
Nd8+ {[%clk 0:01:10.3]} 46... Kd7 {[%clk 0:01:34.2]} 47. Nb7 {[%clk 0:01:11.2]}
47... b4 {[%clk 0:01:30.2]} 48. Nc5+ {[%clk 0:01:11.7]} 48... Ke7 {[%clk
0:01:29.5]} 49. Rh1 {[%clk 0:00:35.5]} 49... c3 {[%clk 0:01:18.6]} 50. Ke3
{[%clk 0:00:35.2]} 50... b3 {[%clk 0:01:14.4]} 51. Nxb3 {[%clk 0:00:27.5]} 51...
Rxb3 {[%clk 0:01:16.3]} 52. Kd3 {[%clk 0:00:29]} 52... Rb8 {[%clk 0:00:27.4]}
53. Rxh5 {[%clk 0:00:28]} 53... Rc8 {[%clk 0:00:28.8]} 54. Rh7+ {[%clk
0:00:24.1]} 54... Kd8 {[%clk 0:00:29.8]} 55. Kc2 {[%clk 0:00:25.1]} 55... Rc4
{[%clk 0:00:30]} 56. Rh6 {[%clk 0:00:16.2]} 56... Kd7 {[%clk 0:00:29.1]} 57.
Rh7+ {[%clk 0:00:17.2]} 57... Ke8 {[%clk 0:00:30.6]} 58. Rh6 {[%clk 0:00:14.3]}
58... Kf7 {[%clk 0:00:31.9]} 59. Rh7+ {[%clk 0:00:10.9]} 59... Kg6 {[%clk
0:00:32.9]} 60. Re7 {[%clk 0:00:09]} 60... Kf5 {[%clk 0:00:34]} 61. Rf7+ {[%clk
0:00:05]} 61... Ke4 {[%clk 0:00:34.9]} 62. Rf6 {[%clk 0:00:06.3]} 62... Kxd4
{[%clk 0:00:34.9]} 63. Rxe6 {[%clk 0:00:07.7]} 63... Rb4 {[%clk 0:00:36.4]} 64.
Re8 {[%clk 0:00:08.6]} 64... Rb2+ {[%clk 0:00:36.6]} 65. Kc1 {[%clk 0:00:09.7]}
65... Kd3 {[%clk 0:00:37.7]} 66. e6 {[%clk 0:00:09.5]} 66... Re2 {[%clk
0:00:38.8]} 67. Kb1 {[%clk 0:00:08.7]} 67... Re1+ {[%clk 0:00:31.2]} 68. Ka2
{[%clk 0:00:07.8]} 68... c2 {[%clk 0:00:33.1]} 0-1